fUSD/lending_fUSD_20260308
["ID","MTS","AMOUNT","RATE_DAILY","PERIOD"]
[408000685,1773004243730,-500.0,0.00019656,2]
[408000686,1773004243739,-500.0,0.00019656,2]
[408000687,1773004243749,-150.0,0.00019656,2]
[408000688,1773004243759,-346.24370704,0.00019656,2]
[408000689,1773004243768,-500.0,0.00019656,2]
[408000690,1773004243777,-502.49983748,0.00019656,2]
[408000691,1773004243787,-500.0,0.00019656,2]
[408000692,1773004243797,-500.0,0.00019656,2]
[408000693,1773004243807,-500.0,0.00019656,2]
[408000694,1773004243816,-500.0,0.00019656,2]
[408000695,1773004243826,-500.0,0.00019656,2]
[408000696,1773004243836,-500.0,0.00019656,2]
[408000697,1773004243845,-500.0,0.00019656,2]
[408000698,1773004243856,-500.0,0.00019656,2]
[408000699,1773004243866,-500.0,0.00019656,2]
[408000700,1773004243876,-184.47576362,0.00019656,2]
[408000701,1773004243885,-500.0,0.00019656,2]
[408000702,1773004243894,-150.0,0.00019656,2]
[408000703,1773004243903,-503.48441563,0.00019656,2]
[408000704,1773004243914,-512.0,0.00019656,2]
[408000705,1773004243923,-4929.29232867,0.00019676,2]
[408000706,1773004243932,-161.0,0.0001968,2]
[408000707,1773004243942,-2805.0,0.0001968,2]
[408000708,1773004243951,-877.24,0.00019684,2]
[408000709,1773004243960,-781.25,0.00019684,2]
[408000710,1773004243970,-1131.9,0.00019687,2]
[408000711,1773004243979,-3700.0,0.000197,7]
[408000712,1773004243989,-2000.0,0.000197,2]
[408000713,1773004243998,-2000.0,0.000197,2]
[408000714,1773004244008,-893.88,0.00019711,2]
[408000715,1773004244018,-500.0,0.00019711,2]
[408000716,1773004244027,-500.0,0.00019711,2]
[408000717,1773004244036,-500.0,0.00019711,2]
[408000718,1773004244046,-500.0,0.00019711,2]
[408000719,1773004244056,-500.0,0.00019711,2]
[408000720,1773004244066,-500.0,0.00019711,2]
[408000721,1773004244076,-500.0,0.00019711,2]
[408000722,1773004244085,-500.0,0.00019711,2]
[408000723,1773004244095,-349.5192988,0.00019711,2]
[408000724,1773004244105,-150.0,0.00019711,2]
[408000725,1773004244114,-573.88791799,0.00019711,2]
[408000726,1773004244124,-500.0,0.00019711,2]
[408000727,1773004244133,-500.0,0.00019711,2]
[408000728,1773004244142,-165.95964201,0.00019711,2]
[408000729,1773004244151,-9279.44470698,0.00019726,2]
[408000730,1773004244162,-1000.0,0.00019726,2]
[408000731,1773004244171,-550.0,0.00019729,2]
[408000732,1773004244181,-153.26656442,0.00019751,2]
[408000733,1773004244190,-179.91,0.00019765,2]
[408000734,1773004244200,-500.0,0.00019766,2]
[408000735,1773004244209,-500.0,0.00019766,2]
[408000736,1773004244219,-500.0,0.00019766,2]
[408000737,1773004244228,-500.0,0.00019766,2]
[408000738,1773004244238,-500.0,0.00019766,2]
[408000739,1773004244248,-300.0,0.00019766,2]
[408000740,1773004244257,-500.0,0.00019766,2]
[408000741,1773004244267,-500.0,0.00019766,2]
[408000742,1773004244277,-350.0,0.00019766,2]
[408000743,1773004244286,-1131.9,0.00019791,2]
[408000744,1773004244295,-297.0,0.00019791,2]
[408000745,1773004244305,-299.95430794,0.00019792,2]
[408000746,1773004244314,-500.0,0.00019792,2]
[408000747,1773004244323,-1000.0,0.00019799,2]
[408000748,1773004244333,-150.0,0.000198,14]
[408000749,1773004244343,-4200.0,0.000198,7]
[408000750,1773004244352,-10000.0,0.000198,2]
[408000751,1773004244361,-2000.0,0.000198,2]
[408000752,1773004244371,-2000.0,0.000198,2]
[408000753,1773004244380,-2542.72101729,0.0001981,2]
[408000754,1773004244390,-500.0,0.00019821,2]
[408000755,1773004244399,-500.0,0.00019821,2]
[408000756,1773004244409,-314.52367001,0.00019821,2]
[408000757,1773004244418,-500.0,0.00019821,2]
[408000758,1773004244428,-500.0,0.00019821,2]
[408000759,1773004244437,-500.0,0.00019821,2]
[408000760,1773004244447,-500.0,0.00019821,2]
[408000761,1773004244456,-1000.0,0.00019823,2]
[408000762,1773004244466,-154.78,0.0001983,2]
[408000763,1773004244475,-4485.442,0.0001984,2]
[408000764,1773004244484,-200.0,0.0001984,2]
[408000765,1773004244494,-151.0,0.0001984,2]
[408000766,1773004244503,-151.0,0.0001984,2]
[408000767,1773004244513,-283.619485,0.0001984,2]
[408000768,1773004244523,-3531.0,0.00019867,2]
[408000769,1773004244757,-3361.0,0.00019867,2]
[408000770,1773004244767,-500.0,0.00019873,2]
[408000771,1773004244776,-500.0,0.00019873,2]
[408000772,1773004244785,-500.0,0.00019873,2]
[408000773,1773004244795,-235.21838039,0.00019873,2]
[408000774,1773004244804,-500.0,0.00019876,2]
[408000775,1773004244813,-500.0,0.00019876,2]
[408000776,1773004244822,-500.0,0.00019876,2]
[408000777,1773004244831,-150.0,0.00019876,2]
[408000778,1773004244840,-500.0,0.00019876,2]
[408000779,1773004244850,-540.0,0.00019876,2]
[408000780,1773004244859,-770.1788449,0.00019876,2]
[408000781,1773004244868,-1346.56305121,0.00019876,2]
[408000782,1773004244878,-150.0,0.00019879,2]
[408000783,1773004244887,-770.17884489,0.00019888,2]
[408000784,1773004244897,-1346.56305121,0.00019888,2]
[408000785,1773004244906,-1131.9,0.00019896,2]
[408000786,1773004244914,-267.92599902,0.00019899,2]
[408000787,1773004244924,-300.0,0.00019899,2]
[408000788,1773004244933,-300.0,0.00019899,2]
[408000789,1773004244942,-300.0,0.00019899,2]
[408000790,1773004244951,-2000.0,0.000199,2]
[408000791,1773004244960,-25000.0,0.000199,3]
[408000792,1773004244969,-500.0,0.000199,2]
[408000793,1773004244978,-500.0,0.000199,2]
[408000794,1773004244987,-331.18055175,0.000199,2]
[408000795,1773004244996,-2000.0,0.000199,2]
[408000796,1773004245006,-2000.0,0.000199,2]
[408000797,1773004245015,-2000.0,0.000199,2]
[408000798,1773004245024,-21473.36841664,0.000199,3]
[408000799,1773004245037,-5800.0,0.000199,2]
[408000800,1773004245046,-2000.0,0.000199,2]
[408000801,1773004245056,-2000.0,0.000199,2]
[408000802,1773004245065,-2000.0,0.000199,2]
[408000803,1773004245075,-1541.03721467,0.000199,2]
[408000804,1773004245084,-539.84140575,0.000199,2]
[408000805,1773004245095,-150.0,0.000199,2]
[408000806,1773004245104,-151.0,0.000199,2]
[408000807,1773004245114,-869.17822,0.000199,2]
[408000808,1773004245123,-869.17822,0.000199,2]
[408000809,1773004245132,-869.17822,0.000199,2]
[408000810,1773004245141,-869.17822,0.000199,2]
[408000811,1773004245151,-580.672105,0.000199,2]
[408000812,1773004245160,-580.672105,0.000199,2]
[408000813,1773004245171,-580.672105,0.000199,2]
[408000814,1773004245180,-580.672105,0.000199,2]
[408000815,1773004245190,-151.0,0.000199,2]
[408000816,1773004245199,-186.188369,0.000199,2]
[408000817,1773004245208,-186.188369,0.000199,2]
[408000818,1773004245218,-186.188369,0.000199,2]
[408000819,1773004245227,-186.188369,0.000199,2]
[408000820,1773004245236,-151.0,0.000199,2]
[408000821,1773004245245,-151.0,0.000199,2]
[408000822,1773004245254,-151.0,0.000199,2]
[408000823,1773004245264,-151.0,0.000199,2]
[408000824,1773004245273,-150.0,0.000199,2]
[408000825,1773004245283,-151.0,0.000199,2]
[408000826,1773004245293,-151.0,0.000199,2]
[408000827,1773004245302,-4929.29232867,0.000199,2]
[408000828,1773004245312,-459.421062,0.000199,2]
[408000829,1773004245321,-459.421062,0.000199,2]
[408000830,1773004245331,-459.421062,0.000199,2]
[408000831,1773004245340,-459.421062,0.000199,2]
[408000832,1773004245351,-151.0,0.000199,2]
[408000833,1773004245360,-951.53037599,0.000199,2]
[408000834,1773004245370,-151.0,0.000199,2]
[408000836,1773004245380,-151.0,0.000199,2]
[408000837,1773004245389,-9279.44470698,0.000199,2]
[408000838,1773004245399,-150.0,0.000199,2]
[408000839,1773004245409,-5582.86283425,0.000199,2]
[408000840,1773004245419,-770.17884489,0.000199,2]
[408000841,1773004245428,-343.20274,0.000199,2]
[408000842,1773004245438,-343.20274,0.000199,2]
[408000843,1773004245447,-343.20274,0.000199,2]
[408000844,1773004245457,-343.20274,0.000199,2]
[408000845,1773004245466,-1346.56305121,0.000199,2]
[408000846,1773004245476,-151.0,0.00019905,2]
[408000847,1773004245486,-350.0,0.00019924,2]
[408000848,1773004245498,-500.0,0.0001993,2]
[408000849,1773004245509,-231.1610732,0.0001993,2]
[408000850,1773004245519,-500.0,0.0001993,2]
[408000851,1773004245530,-500.0,0.0001993,2]
[408000852,1773004245539,-570.0,0.00019945,2]
[408000853,1773004245550,-877.24,0.00019958,2]
[408000854,1773004245561,-781.25,0.00019958,2]
[408000855,1773004245571,-300.0,0.00019965,2]
[408000856,1773004245582,-1515.0,0.00019967,2]
[408000857,1773004245592,-1515.0,0.00019967,2]
[408000858,1773004245604,-1515.0,0.00019967,2]
[408000859,1773004245614,-1515.0,0.00019967,2]
[408000860,1773004245624,-151.0,0.00019967,2]
[408000861,1773004245634,-1515.0,0.00019967,2]
[408000862,1773004245646,-151.0,0.00019967,2]
[408000863,1773004245655,-1515.0,0.00019967,2]
[408000864,1773004245664,-151.0,0.00019967,2]
[408000865,1773004245673,-1515.0,0.00019967,2]
[408000866,1773004245685,-160.44308583,0.00019967,2]
[408000867,1773004245694,-151.0,0.00019967,2]
[408000868,1773004245703,-151.0,0.00019967,2]
[408000869,1773004245713,-1515.0,0.00019967,2]
[408000870,1773004245722,-1515.0,0.00019967,2]
[408000871,1773004245731,-1515.0,0.00019967,2]
[408000872,1773004245745,-151.0,0.00019967,2]
[408000873,1773004245756,-1515.0,0.00019967,2]
[408000874,1773004245765,-1515.0,0.00019967,2]
[408000875,1773004245774,-151.0,0.00019967,2]
[408000876,1773004245784,-1515.0,0.00019967,2]
[408000877,1773004245793,-151.0,0.00019967,2]
[408000878,1773004245802,-1515.0,0.00019967,2]
[408000879,1773004245812,-151.0,0.00019967,2]
[408000880,1773004245830,-1515.0,0.00019967,2]
[408000881,1773004245845,-151.0,0.00019967,2]
[408000882,1773004245855,-1515.0,0.00019967,2]
[408000883,1773004245864,-151.0,0.00019967,2]
[408000884,1773004245874,-500.33449997,0.00019967,2]
[408000885,1773004245883,-500.0,0.0001997,2]
[408000886,1773004245893,-500.0,0.0001997,2]
[408000887,1773004245902,-500.0,0.0001997,2]
[408000888,1773004245911,-500.0,0.0001997,2]
[408000889,1773004245921,-500.0,0.0001997,2]
[408000890,1773004245930,-700.0,0.0001997,2]
[408000891,1773004245939,-700.0,0.0001997,2]
[408000892,1773004245948,-700.0,0.0001997,2]
[408000893,1773004245958,-700.0,0.0001997,2]
[408000894,1773004245970,-700.0,0.0001997,2]
[408000895,1773004245981,-700.0,0.0001997,2]
[408000896,1773004245990,-700.0,0.0001997,2]
[408000897,1773004246000,-700.0,0.0001997,2]
[408000898,1773004246009,-700.0,0.0001997,2]
[408000899,1773004246018,-982.047401,0.0001997,2]
[408000900,1773004246027,-6110.0,0.00019973,2]
[408000901,1773004246037,-500.0,0.00019973,2]
[408000902,1773004246052,-500.0,0.00019973,2]
[408000903,1773004246061,-500.0,0.00019973,2]
[408000904,1773004246070,-349.85488597,0.00019973,2]
[408000905,1773004246080,-205.88057451,0.00019973,2]
[408000906,1773004246090,-494.64624274,0.00019973,2]
[408000907,1773004246099,-500.0,0.00019973,2]
[408000908,1773004246108,-500.0,0.00019973,2]
[408000909,1773004246117,-500.0,0.00019973,2]
[408000910,1773004246127,-150.0,0.00019973,2]
[408000911,1773004246136,-500.0,0.00019975,2]
[408000912,1773004246145,-549.68387848,0.00019975,2]
[408000913,1773004246155,-500.0,0.00019975,2]
[408000914,1773004246164,-500.0,0.00019975,2]
[408000915,1773004246173,-499.92362241,0.00019975,2]
[408000916,1773004246182,-310.89756555,0.00019975,2]
[408000917,1773004246191,-300.0,0.00019975,2]
[408000918,1773004246201,-462144.53019654,0.00019976,2]
[408000919,1773004246227,-215949.12483816,0.00019976,2]
[408000920,1773004246236,-13994.1632205,0.00019976,2]
[408000921,1773004246245,-2208.4280909,0.00019976,2]
[408000922,1773004246255,-151.0,0.00019976,2]
[408000923,1773004246274,-151.0,0.00019976,2]
[408000924,1773004246283,-151.0,0.00019976,2]
[408000925,1773004246292,-90939.8875237,0.00019976,2]
[408000926,1773004246301,-151.0,0.00019976,2]
[408000927,1773004246311,-32988.8241833,0.00019976,2]
[408000928,1773004246320,-151.0,0.00019976,2]
[408000929,1773004246330,-151.0,0.00019976,2]
[408000930,1773004246340,-183.614862,0.00019976,2]
[408000931,1773004246349,-869.17822,0.00019976,2]
[408000932,1773004246359,-869.17822,0.00019976,2]
[408000933,1773004246370,-869.17822,0.00019976,2]
[408000934,1773004246379,-869.17822,0.00019976,2]
[408000935,1773004246388,-70982.9440252,0.00019976,2]
[408000936,1773004246398,-580.672105,0.00019976,2]
[408000937,1773004246408,-580.672105,0.00019976,2]
[408000938,1773004246417,-580.672105,0.00019976,2]
[408000939,1773004246427,-580.672105,0.00019976,2]
[408000940,1773004246437,-151.0,0.00019976,2]
[408000941,1773004246447,-203.715156,0.00019976,2]
[408000942,1773004246457,-186.188369,0.00019976,2]
[408000943,1773004246467,-186.188369,0.00019976,2]
[408000944,1773004246476,-186.188369,0.00019976,2]
[408000945,1773004246486,-186.188369,0.00019976,2]
[408000946,1773004246495,-186.188369,0.00019976,2]
[408000947,1773004246505,-186.188369,0.00019976,2]
[408000948,1773004246514,-186.188369,0.00019976,2]
[408000949,1773004246524,-186.188369,0.00019976,2]
[408000950,1773004246534,-151.0,0.00019976,2]
[408000951,1773004246544,-151.0,0.00019976,2]
[408000952,1773004246553,-151.0,0.00019976,2]
[408000953,1773004246562,-151.0,0.00019976,2]
[408000954,1773004246571,-151.0,0.00019976,2]
[408000955,1773004246581,-151.0,0.00019976,2]
[408000956,1773004246590,-151.0,0.00019976,2]
[408000958,1773004246599,-151.0,0.00019976,2]
[408000960,1773004246614,-2314.9628854,0.00019976,2]
[408000962,1773004246634,-119626.2203779,0.00019976,2]
[408000963,1773004246650,-268.921368,0.00019976,2]
[408000964,1773004246660,-151.0,0.00019976,2]
[408000966,1773004246668,-151.0,0.00019976,2]
[408000967,1773004246678,-459.421062,0.00019976,2]
[408000968,1773004246688,-459.421062,0.00019976,2]
[408000969,1773004246698,-459.421062,0.00019976,2]
[408000970,1773004246707,-459.421062,0.00019976,2]
[408000971,1773004246716,-459.421062,0.00019976,2]
[408000972,1773004246726,-459.421062,0.00019976,2]
[408000973,1773004246735,-459.421062,0.00019976,2]
[408000974,1773004246745,-459.421062,0.00019976,2]
[408000975,1773004246755,-151.0,0.00019976,2]
[408000976,1773004246764,-151.0,0.00019976,2]
[408000977,1773004246773,-151.0,0.00019976,2]
[408000978,1773004246783,-151.0,0.00019976,2]
[408000979,1773004246794,-269.832091,0.00019976,2]
[408000980,1773004246804,-343.20274,0.00019976,2]
[408000981,1773004246815,-343.20274,0.00019976,2]
[408000982,1773004246825,-343.20274,0.00019976,2]
[408000983,1773004246834,-343.20274,0.00019976,2]
[408000984,1773004246845,-343.20274,0.00019976,2]
[408000985,1773004246855,-343.20274,0.00019976,2]
[408000986,1773004246865,-343.20274,0.00019976,2]
[408000987,1773004246874,-343.20274,0.00019976,2]
[408000988,1773004246884,-151.0,0.00019976,2]
[408000989,1773004246894,-151.0,0.00019976,2]
[408000990,1773004246903,-151.0,0.00019976,2]
[408000991,1773004246912,-500.0,0.00019979,2]
[408000992,1773004246922,-500.0,0.00019979,2]
[408000993,1773004246931,-500.0,0.00019979,2]
[408000994,1773004246941,-500.0,0.00019979,2]
[408000995,1773004246950,-300.0,0.00019979,2]
[408000996,1773004246959,-150.0,0.0001998,2]
[408000997,1773004246968,-150.0,0.0001998,2]
[408000998,1773004246977,-150.0,0.0001998,2]
[408000999,1773004246987,-150.0,0.0001998,2]
[408001000,1773004246996,-150.0,0.0001998,2]
[408001001,1773004247006,-150.109,0.0001998,2]
[408001002,1773004247015,-150.0,0.0001998,2]
[408001003,1773004247024,-150.0,0.0001998,2]
[408001004,1773004247034,-150.379,0.0001998,2]
[408001005,1773004247044,-150.0,0.0001998,2]
[408001006,1773004247054,-1342.0,0.0001998,2]
[408001007,1773004247063,-635.152,0.0001998,2]
[408001008,1773004247072,-1042.0,0.0001998,2]
[408001009,1773004247082,-3504.0,0.0001998,2]
[408001010,1773004247091,-551.23395292,0.0001998,2]
[408001011,1773004247101,-1279.0,0.0001998,2]
[408001012,1773004247110,-150.0,0.0001998,2]
[408001013,1773004247119,-1213.0,0.0001998,2]
[408001014,1773004247128,-922.0,0.0001998,2]
[408001015,1773004247138,-5992.0,0.0001998,2]
[408001016,1773004247147,-2460.0,0.0001998,2]
[408001017,1773004247157,-500.0,0.00019985,2]
[408001018,1773004247166,-500.0,0.00019985,2]
[408001019,1773004247176,-300.0,0.00019985,2]
[408001020,1773004247185,-500.0,0.00019998,2]
[408001021,1773004247194,-500.0,0.00019998,2]
[408001022,1773004247204,-500.0,0.00019998,2]
[408001023,1773004247214,-155.0,0.00019998,2]
[408001024,1773004247223,-500.0,0.00019998,2]
[408001025,1773004247233,-500.0,0.00019998,2]
[408001026,1773004247242,-500.0,0.00019998,2]
[408001027,1773004247252,-500.0,0.00019998,2]
[408001028,1773004247261,-500.0,0.00019998,2]
[408001029,1773004247271,-324.75878306,0.00019998,2]
[408001030,1773004247280,-500.0,0.00019999,2]
[408001031,1773004247290,-500.0,0.00019999,2]
[408001032,1773004247299,-500.0,0.00019999,2]
[408001033,1773004247308,-500.0,0.00019999,2]
[408001034,1773004247317,-500.0,0.00019999,2]
[408001035,1773004247327,-500.0,0.00019999,2]
[408001036,1773004247336,-500.0,0.00019999,2]
[408001037,1773004247345,-529.61791857,0.00019999,2]
[408001038,1773004247354,-500.0,0.00019999,2]
[408001039,1773004247364,-500.0,0.00019999,2]
[408001040,1773004247373,-500.0,0.00019999,2]
[408001041,1773004247382,-500.0,0.00019999,2]
[408001042,1773004247391,-500.0,0.00019999,2]
[408001043,1773004247400,-500.0,0.00019999,2]
[408001044,1773004247410,-500.0,0.00019999,2]
[408001045,1773004247419,-500.0,0.00019999,2]
[408001046,1773004247428,-500.0,0.00019999,2]
[408001047,1773004247437,-500.0,0.00019999,2]
[408001048,1773004247446,-323.2,0.00019999,2]
[408001049,1773004247456,-500.0,0.00019999,2]
[408001050,1773004247465,-500.0,0.00019999,2]
[408001051,1773004247474,-445.68,0.00019999,2]
[408001052,1773004247483,-500.0,0.00019999,2]
[408001053,1773004247492,-500.0,0.00019999,2]
[408001054,1773004247502,-500.0,0.00019999,2]
[408001055,1773004247511,-500.0,0.00019999,2]
[408001056,1773004247520,-200.0,0.00019999,2]
[408001057,1773004247528,-15479.00190792,0.00019999,2]
[408001058,1773004247538,-151.0,0.00019999,2]
[408001059,1773004247547,-151.0,0.00019999,2]
[408001060,1773004247556,-625.54353165,0.00019999,2]
[408001061,1773004247565,-211.58358688,0.00019999,2]
[408001062,1773004247574,-869.17822,0.00019999,2]
[408001063,1773004247583,-869.17822,0.00019999,2]
[408001064,1773004247592,-869.17822,0.00019999,2]
[408001065,1773004247603,-869.17822,0.00019999,2]
[408001066,1773004247615,-580.672105,0.00019999,2]
[408001067,1773004247623,-580.672105,0.00019999,2]
[408001068,1773004247633,-580.672105,0.00019999,2]
[408001069,1773004247643,-580.672105,0.00019999,2]
[408001070,1773004247652,-255.75987188,0.00019999,2]
[408001071,1773004247661,-151.0,0.00019999,2]
[408001072,1773004247671,-151.0,0.00019999,2]
[408001073,1773004247682,-343.20274,0.00019999,2]
[408001074,1773004247691,-343.20274,0.00019999,2]
[408001075,1773004247700,-343.20274,0.00019999,2]
[408001076,1773004247709,-343.20273,0.00019999,2]
[408001077,1773004247719,-151.0,0.00019999,2]
[408001078,1773004247728,-206.35597305,0.00019999,2]
[408001079,1773004247738,-500.0,0.00019999,2]
[408001080,1773004247748,-477.69069778,0.00019999,2]
[408001081,1773004247759,-169.06691202,0.00019999,2]
[408001082,1773004247770,-500.0,0.00019999,2]
[408001083,1773004247780,-231.89164943,0.00019999,2]
[408001084,1773004247789,-500.0,0.00019999,2]
[408001085,1773004247799,-500.0,0.00019999,2]
[408001086,1773004247808,-500.0,0.00019999,2]
[408001087,1773004247818,-500.0,0.00019999,2]
[408001088,1773004247827,-500.0,0.00019999,2]
[408001089,1773004247836,-430.19644101,0.00019999,2]
[408001090,1773004247845,-500.0,0.00019999,2]
[408001091,1773004247855,-500.0,0.00019999,2]
[408001092,1773004247864,-500.0,0.00019999,2]
[408001093,1773004247873,-474.102705,0.00019999,2]
[408001094,1773004247882,-150.0,0.00019999,2]
[408001095,1773004247891,-250.0,0.00019999,2]
[408001096,1773004247901,-250.0,0.00019999,2]
[408001097,1773004247910,-257.6,0.00019999,2]
[408001098,1773004247920,-2135.0,0.0002,2]
[408001099,1773004247931,-1437593.00515211,0.0002,2]
[408001100,1773004247944,-33611.50000001,0.0002,2]
[408001101,1773004247960,-1504.62776508,0.0002,2]
[408001102,1773004247972,-458.87313864,0.0002,2]
[408001103,1773004248385,-200.0,0.000193,2]
[408001104,1773004248395,-3383.29329863,0.0002,2]
[408001105,1773004248407,-267973.00000029,0.0002,2]
[408001106,1773004248422,-11279.12259857,0.0002,2]
[408001107,1773004248611,-150.0,0.000193,2]
[408001108,1773004248623,-268.680849,0.0002,2]
[408001109,1773004248633,-8520.048932,0.0002,2]
[408001110,1773004248646,-371.52533801,0.0002,2]
[408001111,1773004248658,-824.0,0.0002,2]
[408001131,1773004811356,500.0,0.000128,2]
[408001144,1773005431625,-155.51,0.00014,2]
[408001145,1773005431636,-168.54,0.00014584,2]
[408001146,1773005431646,-155.51,0.000146,2]
[408001147,1773005431656,-155.51,0.000152,2]
[408001148,1773005431666,-85.15605909,0.000152,2]
[408001149,1773005431682,-64.84394091,0.000152,2]
[408001150,1773005431692,-380.47045649,0.00015471,2]
[408001151,1773005431726,-399.15954351,0.00015471,2]
[408001152,1773005431736,-1200.0,0.00015567,2]
[408001153,1773005431746,-150.0,0.00015567,14]
[408001154,1773005431755,-16129.24,0.00015568,2]
[408001155,1773005431764,-155.51,0.000158,2]
[408001156,1773005431774,-2459.54,0.00015855,2]
[408001157,1773005431784,-166.66,0.00015963,2]
[408001158,1773005431794,-166.66,0.00016299,2]
[408001159,1773005431803,-155.51,0.000164,2]
[408001160,1773005431813,-166.66,0.00016635,2]
[408001161,1773005431823,-185.84,0.00016745,2]
[408001162,1773005431832,-515.55,0.00016881,2]
[408001163,1773005431842,-1058.45,0.00016887,2]
[408001164,1773005431852,-166.66,0.00016971,2]
[408001165,1773005431862,-155.51,0.00017,2]
[408001166,1773005431871,-503.0,0.00017,2]
[408001167,1773005431880,-503.0,0.00017,2]
[408001168,1773005431890,-503.0,0.00017,2]
[408001169,1773005431900,-3631.11,0.00017047,2]
[408001170,1773005431910,-1680.0,0.00017113,2]
[408001171,1773005431919,-166.66,0.00017307,2]
[408001172,1773005431929,-3631.11,0.00017474,2]
[408001173,1773005431938,-155.51,0.000176,2]
[408001174,1773005431948,-166.66,0.00017643,2]
[408001175,1773005431962,-500.0,0.00017727,2]
[408001176,1773005431972,-175.79749323,0.00017727,2]
[408001177,1773005431981,-2046.73,0.00017727,2]
[408001178,1773005431990,-999.99,0.00017727,2]
[408001179,1773005432002,-9999.99,0.00017727,2]
[408001181,1773005432012,-9999.99,0.00017727,2]
[408001183,1773005432022,-3631.11,0.000179,2]
[408001185,1773005432036,-600.0,0.00018082,7]
[408001187,1773005432045,-1700.0,0.00018082,7]
[408001189,1773005432055,-1600.0,0.00018082,7]
[408001191,1773005432065,-150.99,0.00018082,2]
[408001193,1773005432074,-2971.02,0.00018082,2]
[408001195,1773005432085,-558.51,0.00018082,2]
[408001197,1773005432094,-150.99,0.00018082,2]
[408001198,1773005432103,-499.99,0.00018082,2]
[408001199,1773005432113,-6270.48,0.00018082,2]
[408001200,1773005432122,-299.99,0.00018082,4]
[408001201,1773005432131,-350.33,0.00018082,2]
[408001202,1773005432141,-155.51,0.000182,2]
[408001203,1773005432151,-1232.32308222,0.0001827,2]
[408001204,1773005432160,-2941.7811016,0.0001827,2]
[408001206,1773005432170,-3631.11,0.00018326,2]
[408001208,1773005432180,-500.0,0.00018332,2]
[408001209,1773005432189,-500.0,0.00018332,2]
[408001210,1773005432199,-500.0,0.00018332,2]
[408001211,1773005432208,-500.0,0.00018332,2]
[408001212,1773005432218,-500.0,0.00018332,2]
[408001213,1773005432228,-500.0,0.00018332,2]
[408001214,1773005432238,-443.01333605,0.00018332,2]
[408001215,1773005432248,-71976.08991355,0.00018333,2]
[408001216,1773005432260,-595.51496788,0.00018333,2]
[408001217,1773005432272,-7167.07226802,0.00018333,2]
[408001218,1773005432283,-1027.11678612,0.00018333,2]
[408001219,1773005432297,-719.62920142,0.00018333,2]
[408001220,1773005432309,-18404.33150997,0.00018333,2]
[408001221,1773005432320,-83321.90217307,0.00018333,2]
[408001222,1773005432331,-387.6034373,0.00018333,2]
[408001223,1773005432343,-744.73038692,0.00018333,2]
[408001224,1773005432364,-685.99457404,0.00018333,2]
[408001225,1773005432376,-738.41,0.00018333,2]
[408001228,1773005437722,-150.0,0.00017982,2]
[408001229,1773005437732,-790.8076,0.00018082,7]
[408001232,1773005437780,-642.09259852,0.00018082,7]
[408001233,1773005437792,-67.09980148,0.00018082,7]
[408001234,1773005437802,-445.35960745,0.00018333,2]
[408001235,1773005437813,-18275.13788187,0.00018333,2]